Workbook

Sheet particle phase EFs
C1: Emission factor（mg/kg fuel)
A2: Vehicle ID | B2: Log C* | C2: Alkane | D2: Alkene | E2: CycloAlkane | F2: Hopane | G2: PAH2rings | H2: PAH₃rings | I2: PAH₄rings202 | J2: PAH₄ring228 | K2: PAH₅rings | L2: Biphenyl, Acenaphthene | M2: Phenol Benzylic Alcohol | N2: Benzylic Ketone Ester | O2: Acid | P2: Aliphatic Ketone Ester | Q2: Aliphalic Alcohol Ether | R2: Nitros | S2: C₂ alkyl Benzene | T2: C₃ alkyl Benzene | U2: C₄ alkyl Benzene | V2: C₅ alkyl Benzene | W2: C₆ alkyl Benzene | Y2: Total
A3: #1-1 | B3: -4 | C3: 24.31630415 | D3: 0 | E3: 0 | F3: 0.4389977627 | G3: 0 | H3: 0 | I3: 0 | J3: 0.5955904135 | K3: 0.1098233997 | L3: 0 | M3: 0 | N3: 0 | O3: 0 | P3: 0 | Q3: 0 | R3: 0 | S3: 0 | T3: 0 | U3: 0 | V3: 0 | W3: 0 | Y3: =SUM(C3:W3) -> 25.46071573
B4: -3 | C4: 32.73875379 | D4: 0 | E4: 0 | F4: 0.6973276885 | G4: 0 | H4: 0 | I4: 0 | J4: 0.5406606567 | K4: 0.124286846 | L4: 0 | M4: 0 | N4: 0 | O4: 0 | P4: 0 | Q4: 0 | R4: 0 | S4: 0 | T4: 0 | U4: 0 | V4: 0 | W4: 0 | Y4: =SUM(C4:W4) -> 34.10102898
B5: -2 | C5: 4.38681323 | D5: 0 | E5: 0 | F5: 0.08352202039 | G5: 0 | H5: 0 | I5: 0 | J5: 0.06323831928 | K5: 0.01956697891 | L5: 0 | M5: 0 | N5: 0 | O5: 0 | P5: 0 | Q5: 0 | R5: 0 | S5: 0 | T5: 0 | U5: 0 | V5: 0 | W5: 0 | Y5: =SUM(C5:W5) -> 4.553140549
B6: -1 | C6: 0.7426332326 | D6: 0 | E6: 0 | F6: 0.005117799816 | G6: 0 | H6: 0 | I6: 0 | J6: 0.005972405422 | K6: 0 | L6: 0 | M6: 0 | N6: 0 | O6: 0 | P6: 0.008489394535 | Q6: 0 | R6: 0 | S6: 0 | T6: 0 | U6: 0 | V6: 0 | W6: 0 | Y6: =SUM(C6:W6) -> 0.7622128324
B7: 0 | C7: 0.6900939342 | D7: 0 | E7: 0 | F7: 0 | G7: 0 | H7: 0 | I7: 0.04192555287 | J7: 0 | K7: 0 | L7: 0 | M7: 0 | N7: 0 | O7: 0 | P7: 0.004244312044 | Q7: 0 | R7: 0 | S7: 0 | T7: 0 | U7: 0 | V7: 0 | W7: 0 | Y7: 0.7362637992
B8: 1 | C8: 1.995230373 | D8: 0.07891199096 | E8: 0 | F8: 0 | G8: 0 | H8: 0 | I8: 0.02959656586 | J8: 0 | K8: 0 | L8: 0 | M8: 0 | N8: 0 | O8: 0 | P8: 0.008919115994 | Q8: 0 | R8: 0 | S8: 0 | T8: 0 | U8: 0 | V8: 0 | W8: 0 | Y8: 2.112658046
B9: 2 | C9: 1.628380119 | D9: 0.6664987349 | E9: 0 | F9: 0.003232303506 | G9: 0 | H9: 0.1644987386 | I9: 0.02935338108 | J9: 0 | K9: 0 | L9: 0 | M9: 0.002907582143 | N9: 0 | O9: 0.08342649601 | P9: 0.05772358777 | Q9: 0 | R9: 0 | S9: 0 | T9: 0 | U9: 0 | V9: 0 | W9: 0 | Y9: 2.636020943
B10: 3 | C10: 6.81782406 | D10: 0.2837130357 | E10: 0.9573583824 | F10: 0 | G10: 0 | H10: 0.7684626773 | I10: 0 | J10: 0 | K10: 0 | L10: 0 | M10: 0.009511686953 | N10: 0.01488414312 | O10: 0.003587918718 | P10: 0.09322262985 | Q10: 0 | R10: 0 | S10: 0 | T10: 0 | U10: 0 | V10: 0 | W10: 0 | Y10: 8.948564534
B11: 4 | C11: 8.883460461 | D11: 0.4233437165 | E11: 0.7795476497 | F11: 0.008253595413 | G11: 0.165671318 | H11: 0.542126301 | I11: 0 | J11: 0 | K11: 0 | L11: 0.007361431137 | M11: 0.1519237755 | N11: 0.1083249394 | O11: 0.02739332792 | P11: 0.03204872939 | Q11: 0 | R11: 0.8989559139 | S11: 0 | T11: 0 | U11: 0 | V11: 0 | W11: 0 | Y11: 12.02841116
B12: 5 | C12: 3.567694098 | D12: 0.958534501 | E12: 0.10051009 | F12: 0.006908475326 | G12: 30.98672734 | H12: 0.03322368297 | I12: 0 | J12: 0 | K12: 0 | L12: 0.03601862242 | M12: 0.001330165379 | N12: 0.103964001 | O12: 0.01136195105 | P12: 0.08366323589 | Q12: 0 | R12: 0.486587797 | S12: 0 | T12: 0 | U12: 0 | V12: 0 | W12: 0 | Y12: 36.37652396
B13: 6 | C13: 2.299935489 | D13: 0 | E13: 0 | F13: 0 | G13: 2.629534291 | H13: 0 | I13: 0 | J13: 0 | K13: 0 | L13: 0 | M13: 2.08601242 | N13: 0.4997848843 | O13: 0.1737790778 | P13: 0.6560625011 | Q13: 0 | R13: 0 | S13: 0 | T13: 0 | U13: 0 | V13: 0 | W13: 0 | Y13: 8.345108663
B14: 7 | C14: 3.535269587 | D14: 0 | E14: 0 | F14: 0 | G14: 0 | H14: 0.0008219195572 | I14: 0 | J14: 0 | K14: 0 | L14: 0 | M14: 2.803377072 | N14: 0.009614594971 | O14: 0.003510519041 | P14: 0.4280403993 | Q14: 0 | R14: 0.7484032361 | S14: 0 | T14: 0 | U14: 0 | V14: 0 | W14: 0 | Y14: 7.529037328
B15: 8 | C15: 0.5099475457 | D15: 0 | E15: 0 | F15: 0 | G15: 0 | H15: 0 | I15: 0 | J15: 0 | K15: 0 | L15: 0 | M15: 0.5275110148 | N15: 0 | O15: 0.04156237691 | P15: 0.2266272638 | Q15: 0 | R15: 0 | S15: 0 | T15: 0 | U15: 0 | V15: 0 | W15: 0 | Y15: 1.305648201
B16: 9 | C16: 0 | D16: 0 | E16: 0 | F16: 0 | G16: 0 | H16: 0 | I16: 0 | J16: 0 | K16: 0 | L16: 0 | M16: 1.924821025 | N16: 0 | O16: 0 | P16: 0.4186579632 | Q16: 0 | R16: 0 | S16: 0 | T16: 0 | U16: 0 | V16: 0 | W16: 0 | Y16: 2.343478989
B17: Sum | C17: =SUM(C3:C16) -> 92.11234007 | D17: =SUM(D3:D16) -> 2.411001979 | E17: 1.837416122 | F17: 1.243359646 | G17: 33.78193295 | H17: 1.509133319 | I17: 0.1008754998 | J17: 1.205461795 | K17: 0.2536772246 | L17: 0.04338005356 | M17: 7.507394743 | N17: 0.7365725628 | O17: 0.3446216674 | P17: 2.017699133 | Q17: 0 | R17: 2.133946947 | S17: 0 | T17: 0 | U17: 0 | V17: 0 | W17: 0 | Y17: 147.2388137
A18: #1-2 | B18: -4 | C18: 0.4573681366 | D18: 0 | E18: 0 | F18: 0 | G18: 0 | H18: 0 | I18: 0 | J18: 0 | K18: 0 | L18: 0 | M18: 0 | N18: 0 | O18: 0 | P18: 0 | Q18: 0 | R18: 0 | S18: 0 | T18: 0 | U18: 0 | V18: 0 | W18: 0 | Y18: 0.4573681366
B19: -3 | C19: 0.2190162049 | D19: 0 | E19: 0 | F19: 0 | G19: 0 | H19: 0 | I19: 0 | J19: 0 | K19: 0 | L19: 0 | M19: 0 | N19: 0 | O19: 0 | P19: 0 | Q19: 0 | R19: 0 | S19: 0 | T19: 0 | U19: 0 | V19: 0 | W19: 0 | Y19: 0.2190162049
B20: -2 | C20: 0.03583879902 | D20: 0 | E20: 0 | F20: 0 | G20: 0 | H20: 0 | I20: 0 | J20: 0 | K20: 0 | L20: 0 | M20: 0 | N20: 0 | O20: 0 | P20: 0 | Q20: 0 | R20: 0 | S20: 0 | T20: 0 | U20: 0 | V20: 0 | W20: 0 | Y20: 0.03583879902
B21: -1 | C21: 0.001169699055 | D21: 0 | E21: 0 | F21: 0 | G21: 0 | H21: 0 | I21: 0 | J21: 0 | K21: 0 | L21: 0 | M21: 0 | N21: 0 | O21: 0 | P21: 0 | Q21: 0 | R21: 0 | S21: 0 | T21: 0 | U21: 0 | V21: 0 | W21: 0 | Y21: 0.001169699055
B22: 0 | C22: 0.002546722478 | D22: 0 | E22: 0 | F22: 0 | G22: 0 | H22: 0 | I22: 2.717515838e-05 | J22: 0 | K22: 0 | L22: 0 | M22: 0 | N22: 0 | O22: 0 | P22: 0.0002384756135 | Q22: 0 | R22: 0 | S22: 0 | T22: 0 | U22: 0 | V22: 0 | W22: 0 | Y22: 0.00281237325
B23: 1 | C23: 0.01296473041 | D23: 0.002604688533 | E23: 0 | F23: 0 | G23: 0 | H23: 0 | I23: 0.0001831814839 | J23: 0 | K23: 0 | L23: 0 | M23: 0 | N23: 0 | O23: 0 | P23: 6.2008873e-05 | Q23: 0 | R23: 0 | S23: 0 | T23: 0 | U23: 0 | V23: 0 | W23: 0 | Y23: 0.0158146093
B24: 2 | C24: 0.03123852639 | D24: 0.01243232474 | E24: 2.606008936e-05 | F24: 0 | G24: 0 | H24: 0 | I24: 0.0005338267117 | J24: 0 | K24: 0 | L24: 0 | M24: 0 | N24: 0 | O24: 0.00044898716 | P24: 0.0009000907807 | Q24: 0 | R24: 0 | S24: 0 | T24: 0 | U24: 0 | V24: 0 | W24: 0 | Y24: 0.04557981588
B25: 3 | C25: 0.1655177856 | D25: 0.0159829259 | E25: 0.01506182307 | F25: 0.0008447413073 | G25: 0 | H25: 0.0151243482 | I25: 0 | J25: 0.0003565596448 | K25: 3.72507305e-05 | L25: 0 | M25: 0.0006589751533 | N25: 6.257900767e-05 | O25: 0 | P25: 0.001549286177 | Q25: 0 | R25: 0 | S25: 0 | T25: 0 | U25: 0 | V25: 0 | W25: 0 | Y25: 0.2151962747
B26: 4 | C26: 0.07609353398 | D26: 0.002751645318 | E26: 0.0327387227 | F26: 2.150297034e-05 | G26: 0.003546255857 | H26: 0.002164102015 | I26: 0 | J26: 0 | K26: 0 | L26: 8.451530986e-05 | M26: 0.001020612872 | N26: 0.00275052112 | O26: 0.0002499635402 | P26: 0.0001656956744 | Q26: 0 | R26: 0.003578253877 | S26: 0 | T26: 0 | U26: 0 | V26: 0 | W26: 0 | Y26: 0.1251653252
B27: 5 | C27: 0.01378225757 | D27: 0.004525832552 | E27: 8.696325015e-05 | F27: 0 | G27: 0.2985971788 | H27: 1.786131132e-05 | I27: 0 | J27: 0 | K27: 0 | L27: 0.000248161607 | M27: 6.403246187e-05 | N27: 0.0007916311525 | O27: 0.0001594445426 | P27: 0.004672209044 | Q27: 0 | R27: 0.004851299589 | S27: 0 | T27: 0 | U27: 0 | V27: 0 | W27: 0 | Y27: 0.3277968719
B28: 6 | C28: 0.009373425087 | D28: 0 | E28: 0 | F28: 0 | G28: 0.0457483828 | H28: 0 | I28: 0 | J28: 0 | K28: 0 | L28: 0 | M28: 0.0318943096 | N28: 0.005858173318 | O28: 0.003246961767 | P28: 0.00336043362 | Q28: 0 | R28: 0 | S28: 0 | T28: 0 | U28: 0 | V28: 0 | W28: 0 | Y28: 0.09948168619
B29: 7 | C29: 0.04984114804 | D29: 0 | E29: 5.155009991e-06 | F29: 0.0006847034769 | G29: 0 | H29: 0 | I29: 0 | J29: 0.0002309436759 | K29: 0.0007704387855 | L29: 0 | M29: 0.04549840332 | N29: 0.000633372671 | O29: 3.228071739e-05 | P29: 0.009464340787 | Q29: 0 | R29: 0.02713479983 | S29: 0 | T29: 0 | U29: 0 | V29: 0 | W29: 0 | Y29: 0.1342955863
B30: 8 | C30: 0.009983462682 | D30: 0 | E30: 0 | F30: 0 | G30: 0 | H30: 0 | I30: 0 | J30: 0 | K30: 0 | L30: 0 | M30: 0.008161667508 | N30: 0 | O30: 0.0003680858528 | P30: 0.00229559615 | Q30: 0 | R30: 0 | S30: 0 | T30: 0 | U30: 0 | V30: 0 | W30: 0 | Y30: 0.02080881219
B31: 9 | C31: 0 | D31: 0 | E31: 0 | F31: 0 | G31: 0 | H31: 0 | I31: 0 | J31: 0 | K31: 0 | L31: 0 | M31: 0.01489135559 | N31: 0 | O31: 0 | P31: 0.007069511456 | Q31: 0 | R31: 0 | S31: 0 | T31: 0 | U31: 0 | V31: 0 | W31: 0 | Y31: 0.02196086704
B32: Sum | C32: =SUM(C18:C31) -> 1.084734432 | D32: =SUM(D18:D31) -> 0.03829741704 | E32: =SUM(E18:E31) -> 0.04791872412 | F32: =SUM(F18:F31) -> 0.001550947754 | G32: =SUM(G18:G31) -> 0.3478918175 | H32: =SUM(H18:H31) -> 0.01730631152 | I32: =SUM(I18:I31) -> 0.000744183354 | J32: =SUM(J18:J31) -> 0.0005875033207 | K32: =SUM(K18:K31) -> 0.000807689516 | L32: =SUM(L18:L31) -> 0.0003326769168 | M32: =SUM(M18:M31) -> 0.1021893565 | N32: =SUM(N18:N31) -> 0.01009627727 | O32: =SUM(O18:O31) -> 0.00450572358 | P32: =SUM(P18:P31) -> 0.02977764818 | Q32: =SUM(Q18:Q31) -> 0 | R32: =SUM(R18:R31) -> 0.03556435329 | S32: =SUM(S18:S31) -> 0 | T32: =SUM(T18:T31) -> 0 | U32: =SUM(U18:U31) -> 0 | V32: =SUM(V18:V31) -> 0 | W32: =SUM(W18:W31) -> 0 | Y32: 1.722305062
A33: Avg(#2 and #3)-1 | B33: -4 | C33: 0.01075126479 | D33: 0 | E33: 0 | F33: 0 | G33: 0 | H33: 0 | I33: 0 | J33: 0 | K33: 0 | L33: 0 | M33: 0 | N33: 0 | O33: 0 | P33: 0 | Q33: 0 | R33: 0 | S33: 0 | T33: 0 | U33: 0 | V33: 0 | W33: 0 | Y33: 0.01075126479
B34: -3 | C34: 0.01528631675 | D34: 0 | E34: 0 | F34: 0.0001570615022 | G34: 0 | H34: 0 | I34: 0 | J34: 2.802145277e-05 | K34: 2.554634955e-05 | L34: 0 | M34: 0 | N34: 0 | O34: 0 | P34: 0 | Q34: 0 | R34: 0 | S34: 0 | T34: 0 | U34: 0 | V34: 0 | W34: 0 | Y34: 0.01549694606
B35: -2 | C35: 0.01812251516 | D35: 0 | E35: 0 | F35: 5.692918316e-06 | G35: 0 | H35: 0 | I35: 0 | J35: 8.717735494e-06 | K35: 0 | L35: 0 | M35: 0 | N35: 0 | O35: 0 | P35: 0 | Q35: 0 | R35: 0 | S35: 0 | T35: 0 | U35: 0 | V35: 0 | W35: 0 | Y35: 0.01813692581
B36: -1 | C36: 0.03007208289 | D36: 0 | E36: 0 | F36: 0 | G36: 0 | H36: 0 | I36: 0 | J36: 0 | K36: 0.0007936810539 | L36: 0 | M36: 0 | N36: 0 | O36: 0 | P36: 0.0001941596 | Q36: 0 | R36: 0 | S36: 0 | T36: 0 | U36: 0 | V36: 0 | W36: 0 | Y36: 0.03105992354
B37: 0 | C37: 0.01607100517 | D37: 0 | E37: 0 | F37: 0 | G37: 0 | H37: 0 | I37: 0.003531166688 | J37: 0 | K37: 0 | L37: 0 | M37: 0 | N37: 0 | O37: 0 | P37: 0.0006368227256 | Q37: 0 | R37: 0 | S37: 0 | T37: 0 | U37: 0 | V37: 0 | W37: 0 | Y37: 0.02023899458
B38: 1 | C38: 0.01116455252 | D38: 0.003982340729 | E38: 0 | F38: 7.2937222e-05 | G38: 0 | H38: 0 | I38: 0.0006814168172 | J38: 1.9075857e-05 | K38: 0 | L38: 0 | M38: 0 | N38: 0 | O38: 0.00272342106 | P38: 0.002527343006 | Q38: 0 | R38: 0 | S38: 0 | T38: 0 | U38: 0 | V38: 0 | W38: 0 | Y38: 0.02117108721
B39: 2 | C39: 0.02433795869 | D39: 0.02382901797 | E39: 5.678443389e-05 | F39: 4.293729756e-05 | G39: 0 | H39: 0.005613713302 | I39: 0.0009124637876 | J39: 0 | K39: 0 | L39: 0 | M39: 3.14420172e-05 | N39: 0 | O39: 0.004335404776 | P39: 0.002964835482 | Q39: 0 | R39: 0 | S39: 0 | T39: 0 | U39: 0 | V39: 0 | W39: 0 | Y39: 0.06212455775
B40: 3 | C40: 0.06033246319 | D40: 0.004966019072 | E40: 0.002449693913 | F40: 0 | G40: 0 | H40: 0.01233616439 | I40: 0 | J40: 0 | K40: 0 | L40: 0 | M40: 0.0003955894399 | N40: 4.34635005e-05 | O40: 0.0002973961736 | P40: 0.002810296589 | Q40: 0 | R40: 0 | S40: 0 | T40: 0 | U40: 0 | V40: 0 | W40: 0 | Y40: 0.08363108627
B41: 4 | C41: 0.03079709691 | D41: 0.001337241491 | E41: 0.0009047068511 | F41: 0.0001480722289 | G41: 0.0001512392784 | H41: 0.001132118376 | I41: 0 | J41: 3.292197782e-06 | K41: 0 | L41: 2.65577046e-07 | M41: 0.000899050954 | N41: 0.002816389588 | O41: 0.002311149384 | P41: 0.0004340181706 | Q41: 0 | R41: 0.01212239961 | S41: 0 | T41: 0 | U41: 0 | V41: 0 | W41: 0 | Y41: 0.05305704062
B42: 5 | C42: 0.006839924581 | D42: 0.02056469691 | E42: 0.0001113624691 | F42: 5.36042663e-05 | G42: 0.2322000276 | H42: 4.121879343e-06 | I42: 0 | J42: 3.499886245e-05 | K42: 1.294072648e-05 | L42: 0.0001148077077 | M42: 6.463620738e-05 | N42: 0.004733087427 | O42: 0.0002797053312 | P42: 0.002996329522 | Q42: 0 | R42: 0.08673751472 | S42: 0 | T42: 0 | U42: 0 | V42: 0 | W42: 0 | Y42: 0.3547477582
B43: 6 | C43: 0.03285047662 | D43: 0 | E43: 0 | F43: 0.0002688062812 | G43: 0.1078598488 | H43: 0 | I43: 0 | J43: 0 | K43: 0 | L43: 0 | M43: 0.04416206705 | N43: 0.01043878479 | O43: 0.007824172021 | P43: 0.01492693892 | Q43: 0 | R43: 0 | S43: 0 | T43: 0 | U43: 0 | V43: 0 | W43: 0 | Y43: 0.2183310945
B44: 7 | C44: 0.160649501 | D44: 0 | E44: 0.0001335103691 | F44: 0 | G44: 0 | H44: 0 | I44: 0 | J44: 0 | K44: 0 | L44: 0 | M44: 0.1244302733 | N44: 0.01296912875 | O44: 0.0001171987243 | P44: 0.02287493364 | Q44: 0 | R44: 0.05568608689 | S44: 0 | T44: 0 | U44: 0 | V44: 0 | W44: 0 | Y44: 0.3768606327
B45: 8 | C45: 0.03648215163 | D45: 0 | E45: 0.0002611285065 | F45: 0 | G45: 0 | H45: 0 | I45: 0 | J45: 0 | K45: 0 | L45: 0 | M45: 0.05835416369 | N45: 0 | O45: 0.00368327291 | P45: 0.005424417131 | Q45: 0 | R45: 0 | S45: 0 | T45: 3.353741995e-05 | U45: 0 | V45: 0 | W45: 0 | Y45: 0.1042386713
B46: 9 | C46: 0.0026997657 | D46: 0 | E46: 0 | F46: 2.487148072e-05 | G46: 0 | H46: 0 | I46: 0 | J46: 2.604376896e-05 | K46: 3.082381995e-05 | L46: 0 | M46: 0.1936329994 | N46: 0 | O46: 0 | P46: 0.02946136482 | Q46: 0 | R46: 0 | S46: 0 | T46: 0 | U46: 0 | V46: 0 | W46: 0 | Y46: 0.225875869
B47: Sum | C47: =SUM(C33:C46) -> 0.4564570756 | D47: =SUM(D33:D46) -> 0.05467931617 | E47: =SUM(E33:E46) -> 0.003917186543 | F47: =SUM(F33:F46) -> 0.0007739831972 | G47: =SUM(G33:G46) -> 0.3402111157 | H47: =SUM(H33:H46) -> 0.01908611795 | I47: =SUM(I33:I46) -> 0.005125047292 | J47: =SUM(J33:J46) -> 0.0001201498745 | K47: =SUM(K33:K46) -> 0.0008629919499 | L47: =SUM(L33:L46) -> 0.0001150732848 | M47: =SUM(M33:M46) -> 0.421970222 | N47: =SUM(N33:N46) -> 0.03100085405 | O47: =SUM(O33:O46) -> 0.02157172038 | P47: =SUM(P33:P46) -> 0.08525145961 | Q47: =SUM(Q33:Q46) -> 0 | R47: =SUM(R33:R46) -> 0.1545460012 | S47: =SUM(S33:S46) -> 0 | T47: =SUM(T33:T46) -> 3.353741995e-05 | U47: =SUM(U33:U46) -> 0 | V47: =SUM(V33:V46) -> 0 | W47: =SUM(W33:W46) -> 0 | Y47: 1.595721852
A48: Avg(#2 and #3)-2 | B48: -4 | C48: 0.009179322185 | D48: 0 | E48: 0 | F48: 0 | G48: 0 | H48: 0 | I48: 0 | J48: 0 | K48: 0 | L48: 0 | M48: 0 | N48: 0 | O48: 0 | P48: 0 | Q48: 0 | R48: 0 | S48: 0 | T48: 0 | U48: 0 | V48: 0 | W48: 0 | Y48: =SUM(C48:W48) -> 0.009179322185
B49: -3 | C49: 0.006095226312 | D49: 0 | E49: 0 | F49: 7.062858606e-05 | G49: 0 | H49: 0 | I49: 0 | J49: 2.868624356e-05 | K49: 0 | L49: 0 | M49: 0 | N49: 0 | O49: 0 | P49: 0 | Q49: 0 | R49: 0 | S49: 0 | T49: 0 | U49: 0 | V49: 0 | W49: 0 | Y49: 0.006194541142
B50: -2 | C50: 0.009471473737 | D50: 0 | E50: 0 | F50: 0.0001596723538 | G50: 0 | H50: 0 | I50: 0 | J50: 8.596562697e-05 | K50: 3.218254361e-05 | L50: 0 | M50: 0 | N50: 0 | O50: 0 | P50: 0 | Q50: 0 | R50: 0 | S50: 0 | T50: 0 | U50: 0 | V50: 0 | W50: 0 | Y50: 0.009749294261
B51: -1 | C51: 0.01115268798 | D51: 0 | E51: 0 | F51: 0 | G51: 0 | H51: 0 | I51: 0 | J51: 0 | K51: 0.0001158998307 | L51: 0 | M51: 0 | N51: 0 | O51: 0 | P51: 3.397993327e-05 | Q51: 0 | R51: 0 | S51: 0 | T51: 0 | U51: 0 | V51: 0 | W51: 0 | Y51: 0.01130256774
B52: 0 | C52: 0.006680450243 | D52: 0 | E52: 0 | F52: 0 | G52: 0 | H52: 0 | I52: 0.001067667586 | J52: 0 | K52: 0 | L52: 0 | M52: 0 | N52: 0 | O52: 0 | P52: 0.0005979684242 | Q52: 0 | R52: 0 | S52: 0 | T52: 0 | U52: 0 | V52: 0 | W52: 0 | Y52: 0.008346086253
B53: 1 | C53: 0.007691714449 | D53: 0.0007062396046 | E53: 0 | F53: 0 | G53: 0 | H53: 0 | I53: 0.0008708406946 | J53: 0 | K53: 0 | L53: 0 | M53: 0 | N53: 0 | O53: 0.0005736782828 | P53: 0.003244222958 | Q53: 0 | R53: 0 | S53: 0 | T53: 0 | U53: 0 | V53: 0 | W53: 0 | Y53: 0.01308669599
B54: 2 | C54: 0.02198005348 | D54: 0.01444304424 | E54: 8.991676917e-05 | F54: 9.876897245e-05 | G54: 0 | H54: 0.005831397077 | I54: 0.001585698336 | J54: 0 | K54: 0 | L54: 0 | M54: 0 | N54: 0 | O54: 0.002975061854 | P54: 0.001193546425 | Q54: 0 | R54: 0 | S54: 0 | T54: 0 | U54: 0 | V54: 0 | W54: 0 | Y54: 0.04819748714
B55: 3 | C55: 0.03291233344 | D55: 0.003850410223 | E55: 0.001213293506 | F55: 0 | G55: 0 | H55: 0.01311430911 | I55: 0 | J55: 0 | K55: 0 | L55: 0 | M55: 4.826675957e-05 | N55: 0.0001420520658 | O55: 0.0002602234531 | P55: 0.00318502062 | Q55: 0 | R55: 0 | S55: 0 | T55: 0 | U55: 0 | V55: 0 | W55: 0 | Y55: =SUM(C55:W55) -> 0.05472590917
B56: 4 | C56: 0.01586718246 | D56: 0.0006196989552 | E56: 0.0006672070085 | F56: 3.169834069e-05 | G56: 0.0004809001872 | H56: 0.0009506659426 | I56: 0 | J56: 0 | K56: 0 | L56: 0 | M56: 0.00130180335 | N56: 0.003046081375 | O56: 0.001148966434 | P56: 0.0005115795532 | Q56: 0 | R56: 0.006489000351 | S56: 0 | T56: 0 | U56: 0 | V56: 0 | W56: 0 | Y56: 0.03111478395
B57: 5 | C57: 0.004724455445 | D57: 0.01585277632 | E57: 0.0001108239217 | F57: 0 | G57: 0.2237807081 | H57: 3.537504062e-07 | I57: 0 | J57: 0 | K57: 0 | L57: 8.335263443e-05 | M57: 0.0001771388836 | N57: 0.005075625753 | O57: 0.0002212487846 | P57: 0.004908610653 | Q57: 0 | R57: 0.05305524057 | S57: 0 | T57: 0 | U57: 0 | V57: 0 | W57: 0 | Y57: 0.3079903348
B58: 6 | C58: 0.01310543167 | D58: 0 | E58: 4.815783484e-05 | F58: 9.617589626e-05 | G58: 0.07919300109 | H58: 0 | I58: 0 | J58: 3.603404595e-05 | K58: 0 | L58: 0 | M58: 0.03631713026 | N58: 0.00598924825 | O58: 0.004137848747 | P58: 0.009706015979 | Q58: 0 | R58: 0 | S58: 0 | T58: 0 | U58: 0 | V58: 0 | W58: 0 | Y58: 0.1486290438
B59: 7 | C59: 0.05750063752 | D59: 0 | E59: 5.281290537e-05 | F59: 4.52086163e-06 | G59: 0 | H59: 0 | I59: 0 | J59: 0 | K59: 0 | L59: 0 | M59: 0.04984959852 | N59: 0.001427774709 | O59: 1.775937793e-05 | P59: 0.008205211556 | Q59: 0 | R59: 0.02154212122 | S59: 0 | T59: 0 | U59: 0 | V59: 0 | W59: 0 | Y59: 0.1386004367
B60: 8 | C60: 0.008326879077 | D60: 0 | E60: 4.07347765e-05 | F60: 0 | G60: 0 | H60: 0 | I60: 0 | J60: 0 | K60: 0 | L60: 0 | M60: 0.04907956503 | N60: 0 | O60: 0.001000968303 | P60: 0.002682745946 | Q60: 0 | R60: 0 | S60: 0 | T60: 0 | U60: 0 | V60: 0 | W60: 0 | Y60: 0.06113089313
B61: 9 | C61: 0.0005789839323 | D61: 0 | E61: 0 | F61: 0 | G61: 0 | H61: 0 | I61: 0 | J61: 0 | K61: 0 | L61: 0 | M61: 0.06622897697 | N61: 0 | O61: 0 | P61: 0.01278448927 | Q61: 0 | R61: 0 | S61: 0 | T61: 0 | U61: 0 | V61: 0 | W61: 0 | Y61: 0.07959245017
B62: Sum | C62: =SUM(C48:C61) -> 0.2052668319 | D62: =SUM(D48:D61) -> 0.03547216933 | E62: =SUM(E48:E61) -> 0.002222946722 | F62: =SUM(F48:F61) -> 0.0004614650109 | G62: =SUM(G48:G61) -> 0.3034546094 | H62: =SUM(H48:H61) -> 0.01989672588 | I62: =SUM(I48:I61) -> 0.003524206616 | J62: =SUM(J48:J61) -> 0.0001506859165 | K62: =SUM(K48:K61) -> 0.0001480823743 | L62: =SUM(L48:L61) -> 8.335263443e-05 | M62: =SUM(M48:M61) -> 0.2030024798 | N62: =SUM(N48:N61) -> 0.01568078215 | O62: =SUM(O48:O61) -> 0.01033575524 | P62: =SUM(P48:P61) -> 0.04705339131 | Q62: =SUM(Q48:Q61) -> 0 | R62: =SUM(R48:R61) -> 0.08108636214 | S62: =SUM(S48:S61) -> 0 | T62: =SUM(T48:T61) -> 0 | U62: =SUM(U48:U61) -> 0 | V62: =SUM(V48:V61) -> 0 | W62: =SUM(W48:W61) -> 0 | Y62: =SUM(C62:W62) -> 0.9278398464

Sheet gas phase EFs
C1: Emission factor（mg/kg fuel)
A2: Vehicle ID | B2: Log C* | C2: Alkane | D2: Alkene | E2: CycloAlkane | F2: Hopane | G2: PAH2rings | H2: PAH₃rings | I2: PAH₄rings202 | J2: PAH₄ring228 | K2: PAH₅rings | L2: Biphenyl, Acenaphthene | M2: Phenol Benzylic Alcohol | N2: Benzylic Ketone Ester | O2: Acid | P2: Aliphatic Ketone Ester | Q2: Aliphalic Alcohol Ether | R2: Nitros | S2: C₂ alkyl Benzene | T2: C₃ alkyl Benzene | U2: C₄ alkyl Benzene | V2: C₅ alkyl Benzene | W2: C₆ alkyl Benzene | Y2: Total
A3: #1-1 | B3: -4
B4: -3 | C4: 600.60191 | D4: 0 | E4: 0 | F4: 0 | G4: 0 | H4: 0 | I4: 0 | J4: 0 | L4: 0 | M4: 0 | N4: 0 | O4: 0 | P4: 0 | Q4: 0 | S4: 0 | T4: 0 | U4: 0 | V4: 0 | W4: 0 | Y4: =SUM(C4:W4) -> 600.60191
B5: -2 | C5: 1915.85766 | D5: 0 | E5: 0 | F5: 0 | G5: 0 | H5: 0 | I5: 0 | J5: 0 | L5: 0 | M5: 0 | N5: 7.00091 | O5: 0 | P5: 0 | Q5: 353.68585 | S5: 0 | T5: 0 | U5: 0 | V5: 0 | W5: 0 | Y5: =SUM(C5:W5) -> 2276.54442
B6: -1 | C6: 1147.12905 | D6: 0 | E6: 0 | F6: 0 | G6: 0 | H6: 0 | I6: 0 | J6: 0 | L6: 0 | M6: 0 | N6: 0 | O6: 0 | P6: 0 | Q6: 234.03499 | S6: 0 | T6: 0 | U6: 0 | V6: 0 | W6: 0 | Y6: 1381.16404
B7: 0 | C7: 571.98345 | D7: 0 | E7: 0 | F7: 0 | G7: 0 | H7: 0 | I7: 0 | J7: 0 | L7: 0 | M7: 0 | N7: 0 | O7: 0 | P7: 3.81446 | Q7: 341.63727 | S7: 0 | T7: 0 | U7: 0 | V7: 0 | W7: 0 | Y7: 917.43518
B8: 1 | C8: 2348.53785 | D8: 0 | E8: 0 | F8: 4.50728 | G8: 0 | H8: 0 | I8: 1.99835 | J8: 0 | L8: 0 | M8: 0 | N8: 48.89403 | O8: 0 | P8: 1.84475 | Q8: 666.48884 | S8: 0 | T8: 0 | U8: 0 | V8: 0 | W8: 0 | Y8: 3072.2711
B9: 2 | C9: 3440.63832 | D9: 1.85494 | E9: 0 | F9: 0 | G9: 0 | H9: 0 | I9: 25.02951 | J9: 0 | L9: 0 | M9: 0 | N9: 41.82944 | O9: 0 | P9: 12.55339 | Q9: 211.57815 | S9: 0 | T9: 0 | U9: 0 | V9: 0 | W9: 0 | Y9: 3733.48375
B10: 3 | C10: 601.00884 | D10: 5.07027 | E10: 0 | F10: 0 | G10: 0 | H10: 0 | I10: 1.20736 | J10: 0 | L10: 0 | M10: 0 | N10: 26.79549 | O10: 53.21782 | P10: 7.70297 | Q10: 41.27058 | S10: 0 | T10: 0 | U10: 0 | V10: 0 | W10: 0 | Y10: 736.27333
B11: 4 | C11: 481.22131 | D11: 158.29594 | E11: 0.68791 | F11: 0.60386 | G11: 0 | H11: 1.60431 | I11: 0 | J11: 0 | L11: 0 | M11: 554.67599 | N11: 81.18867 | O11: 64.07979 | P11: 9.11652 | Q11: 38.6449 | S11: 0 | T11: 0 | U11: 0 | V11: 0 | W11: 0 | Y11: 1390.1192
B12: 5 | C12: 849.74342 | D12: 9.22311 | E12: 122.77114 | F12: 1.19457 | G12: 0 | H12: 235.53457 | I12: 0 | J12: 0 | L12: 0 | M12: 729.32143 | N12: 120.13132 | O12: 1.22513 | P12: 9.11826 | Q12: 7.79456 | S12: 0 | T12: 0 | U12: 0 | V12: 0 | W12: 0 | Y12: 2086.05751
B13: 6 | C13: 150.79523 | D13: 59.25115 | E13: 24.95561 | F13: 3.72144 | G13: 0.43632 | H13: 30.90642 | I13: 0 | J13: 0 | L13: 1.61412 | M13: 66.95601 | N13: 74.33264 | O13: 31.77379 | P13: 7.67125 | Q13: 48.48159 | S13: 0 | T13: 0 | U13: 0 | V13: 0 | W13: 0 | Y13: 500.89557
B14: 7 | C14: 81.62862 | D14: 19.56697 | E14: 45.302 | F14: 0.00845 | G14: 90.12442 | H14: 10.90514 | I14: 0 | J14: 0 | L14: 3.51224 | M14: 14.50349 | N14: 35.16766 | O14: 3.40829 | P14: 9.91162 | Q14: 21.58951 | S14: 0 | T14: 0 | U14: 0 | V14: 0.05486 | W14: 0.83761 | Y14: 336.52088
B15: 8 | C15: 243.75431 | D15: 34.44119 | E15: 178.14761 | F15: 0.09677 | G15: 25.78844 | H15: 0 | I15: 0 | J15: 0 | L15: 0 | M15: 8.70158 | N15: 126.22812 | O15: 2.98543 | P15: 13.09087 | Q15: 36.05467 | S15: 0 | T15: 0 | U15: 19.75597 | V15: 2.47555 | W15: 0.24516 | Y15: 691.76567
B16: 9 | C16: 24.15356 | D16: 316.0868 | E16: 111.56865 | F16: 0 | G16: 0 | H16: 0 | I16: 0 | J16: 0 | L16: 0 | M16: 109.3502 | N16: 0 | O16: 8.87139 | P16: 45.70874 | Q16: 45.03051 | S16: 72.99536 | T16: 314.43667 | U16: 6.76373 | V16: 0 | W16: 0 | Y16: 1054.96561
B17: Sum | C17: =SUM(C4:C16) -> 12457.05353 | D17: =SUM(D4:D16) -> 603.79037 | E17: 483.43292 | F17: 10.13237 | G17: 116.34918 | H17: 278.95044 | I17: 28.23522 | J17: 0 | K17: 0 | L17: 5.12636 | M17: 1483.5087 | N17: 561.56828 | O17: 165.56164 | P17: 120.53283 | Q17: 2046.29142 | R17: 0 | S17: 72.99536 | T17: 314.43667 | U17: 26.5197 | V17: 2.53041 | W17: 1.08277 | Y17: =SUM(Y3:Y16) -> 18778.09817
A18: #1-2 | B18: -4
B19: -3 | C19: 0 | D19: 0 | E19: 0 | F19: 0.001962625919 | G19: 0 | H19: 0 | I19: 0 | J19: 0 | L19: 0 | M19: 0 | N19: 0 | O19: 0 | P19: 0 | Q19: 0 | S19: 0 | T19: 0 | U19: 0 | V19: 0 | W19: 0 | Y19: =SUM(C19:W19) -> 0.001962625919
B20: -2 | C20: 0.04047828876 | D20: 0 | E20: 0 | F20: 0.001819792075 | G20: 0 | H20: 0 | I20: 0 | J20: 0 | L20: 0 | M20: 0 | N20: 0.03317777341 | O20: 0 | P20: 0 | Q20: 0.3623245618 | S20: 0 | T20: 0 | U20: 0 | V20: 0 | W20: 0 | Y20: 0.437800416
B21: -1 | C21: 0.08149908576 | D21: 0 | E21: 0 | F21: 0 | G21: 0 | H21: 0 | I21: 0 | J21: 0 | L21: 0 | M21: 0 | N21: 0 | O21: 0 | P21: 0 | Q21: 0.2918687494 | S21: 0 | T21: 0 | U21: 0 | V21: 0 | W21: 0 | Y21: 0.3733678352
B22: 0 | C22: 0 | D22: 0 | E22: 0 | F22: 0 | G22: 0 | H22: 0 | I22: 0 | J22: 0 | L22: 0 | M22: 0 | N22: 0 | O22: 0 | P22: 0.001897942979 | Q22: 0.409154415 | S22: 0 | T22: 0 | U22: 0 | V22: 0 | W22: 0 | Y22: 0.411052358
B23: 1 | C23: 0 | D23: 0 | E23: 0 | F23: 0 | G23: 0 | H23: 0 | I23: 0 | J23: 0 | L23: 0 | M23: 0 | N23: 0.02562020245 | O23: 0 | P23: 0.01509705363 | Q23: 4.207785124 | S23: 0 | T23: 0 | U23: 0 | V23: 0 | W23: 0 | Y23: 4.248502381
B24: 2 | C24: 53.87154086 | D24: 0 | E24: 0 | F24: 0 | G24: 0 | H24: 0 | I24: 2.381186318 | J24: 0 | L24: 0 | M24: 0 | N24: 1.713646502 | O24: 0 | P24: 4.100623042 | Q24: 15.32125646 | S24: 0 | T24: 0 | U24: 0 | V24: 0 | W24: 0 | Y24: 77.38825318
B25: 3 | C25: 81.83912332 | D25: 0.1813247194 | E25: 0 | F25: 0 | G25: 0 | H25: 0 | I25: 0.7390721312 | J25: 0 | L25: 0 | M25: 0.07730248045 | N25: 3.03129968 | O25: 0.411933419 | P25: 39.98205471 | Q25: 3.970861454 | S25: 0 | T25: 0 | U25: 0 | V25: 0 | W25: 0 | Y25: 130.2329719
B26: 4 | C26: 38.48047517 | D26: 41.79207439 | E26: 0.1675878374 | F26: 0 | G26: 0 | H26: 0.1593998131 | I26: 0 | J26: 0 | L26: 0 | M26: 47.8294984 | N26: 4.368934237 | O26: 0.06819496243 | P26: 4.745732692 | Q26: 5.212050572 | S26: 0 | T26: 0 | U26: 0 | V26: 0 | W26: 0 | Y26: 142.8239481
B27: 5 | C27: 86.33054618 | D27: 5.550515916 | E27: 12.76503646 | F27: 0 | G27: 0 | H27: 28.34965067 | I27: 0 | J27: 0 | L27: 0 | M27: 90.9815104 | N27: 6.630433644 | O27: 0 | P27: 0.3274775342 | Q27: 1.094115037 | S27: 0 | T27: 0 | U27: 0 | V27: 0 | W27: 0 | Y27: 232.0292858
B28: 6 | C28: 27.9733087 | D28: 20.36482399 | E28: 3.203034564 | F28: 0 | G28: 0.4445554941 | H28: 9.892546313 | I28: 0 | J28: 0 | L28: 0.6037769718 | M28: 14.92981981 | N28: 2.263831887 | O28: 1.397788429 | P28: 2.084406089 | Q28: 7.368336697 | S28: 0 | T28: 0 | U28: 0 | V28: 0 | W28: 0 | Y28: 90.52622894
B29: 7 | C29: 6.888060894 | D29: 1.439473358 | E29: 19.69638058 | F29: 0 | G29: 29.63238548 | H29: 1.770576367 | I29: 0 | J29: 0 | L29: 0.381759126 | M29: 3.900704545 | N29: 5.248136094 | O29: 1.718087176 | P29: 2.214073119 | Q29: 4.659019201 | S29: 0 | T29: 0 | U29: 0 | V29: 0.01900901715 | W29: 0.2571936561 | Y29: 77.82485861
B30: 8 | C30: 32.99078694 | D30: 5.240687654 | E30: 29.61955784 | F30: 0 | G30: 5.302214742 | H30: 0 | I30: 0 | J30: 0 | L30: 0 | M30: 2.093316358 | N30: 14.51128263 | O30: 2.587489853 | P30: 6.313197901 | Q30: 6.625558309 | S30: 0 | T30: 0 | U30: 5.351602501 | V30: 1.73529219 | W30: 0.08044034763 | Y30: 112.4514273
B31: 9 | C31: 3.865508315 | D31: 38.04308166 | E31: 37.53412356 | F31: 0 | G31: 0 | H31: 0 | I31: 0 | J31: 0 | L31: 0 | M31: 13.27394838 | N31: 0 | O31: 4.458510066 | P31: 10.94655756 | Q31: 6.579565896 | S31: 1.027277958 | T31: 19.9288388 | U31: 0.552700421 | V31: 0 | W31: 0 | Y31: 136.2101126
B32: Sum | C32: =SUM(C19:C31) -> 332.3613278 | D32: =SUM(D19:D31) -> 112.6119817 | E32: =SUM(E19:E31) -> 102.9857208 | F32: =SUM(F19:F31) -> 0.003782417994 | G32: =SUM(G19:G31) -> 35.37915572 | H32: =SUM(H19:H31) -> 40.17217316 | I32: =SUM(I19:I31) -> 3.12025845 | J32: =SUM(J19:J31) -> 0 | K32: =SUM(K19:K31) -> 0 | L32: =SUM(L19:L31) -> 0.9855360978 | M32: =SUM(M19:M31) -> 173.0861004 | N32: =SUM(N19:N31) -> 37.82636265 | O32: =SUM(O19:O31) -> 10.6420039 | P32: =SUM(P19:P31) -> 70.73111765 | Q32: =SUM(Q19:Q31) -> 56.10189647 | R32: =SUM(R19:R31) -> 0 | S32: =SUM(S19:S31) -> 1.027277958 | T32: =SUM(T19:T31) -> 19.9288388 | U32: =SUM(U19:U31) -> 5.904302922 | V32: =SUM(V19:V31) -> 1.754301207 | W32: =SUM(W19:W31) -> 0.3376340037 | Y32: =SUM(Y18:Y31) -> 1004.959772
A33: Avg(#2 and #3)-1 | B33: -4
B34: -3 | C34: 67.0882 | D34: 0 | E34: 0 | F34: 0.102895 | G34: 0 | H34: 0 | I34: 0 | J34: 0 | L34: 0 | M34: 0 | N34: 0 | O34: 0 | P34: 0 | Q34: 0 | S34: 0 | T34: 0 | U34: 0 | V34: 0 | W34: 0 | Y34: =SUM(C34:W34) -> 67.191095
B35: -2 | C35: 187.438545 | D35: 0 | E35: 0 | F35: 0.193195 | G35: 0 | H35: 0 | I35: 0 | J35: 0.07885 | L35: 0 | M35: 0 | N35: 4.254405 | O35: 0 | P35: 0.01332 | Q35: 25.496085 | S35: 0 | T35: 0 | U35: 0 | V35: 0 | W35: 0 | Y35: =SUM(C35:W35) -> 217.4744
B36: -1 | C36: 154.387415 | D36: 0 | E36: 0 | F36: 0 | G36: 0 | H36: 0 | I36: 0 | J36: 0 | L36: 0 | M36: 0 | N36: 0 | O36: 0 | P36: 0.632065 | Q36: 35.57424 | S36: 0 | T36: 0 | U36: 0 | V36: 0 | W36: 0 | Y36: 190.59372
B37: 0 | C37: 203.5936 | D37: 0 | E37: 0 | F37: 0 | G37: 0 | H37: 0 | I37: 0 | J37: 0 | L37: 0 | M37: 0 | N37: 0 | O37: 0 | P37: 5.426475 | Q37: 59.149775 | S37: 0 | T37: 0 | U37: 0 | V37: 0 | W37: 0 | Y37: 268.16985
B38: 1 | C38: 349.300345 | D38: 0 | E38: 0 | F38: 0.218135 | G38: 0 | H38: 0 | I38: 29.18988 | J38: 0.001845 | L38: 0 | M38: 0 | N38: 2.53453 | O38: 0.00792 | P38: 43.55647 | Q38: 167.365955 | S38: 0 | T38: 0 | U38: 0 | V38: 0 | W38: 0 | Y38: 592.17508
B39: 2 | C39: 455.99896 | D39: 1.093095 | E39: 0 | F39: 0.96242 | G39: 0 | H39: 0 | I39: 131.7552 | J39: 0.149995 | L39: 0 | M39: 0 | N39: 3.892265 | O39: 0.03086 | P39: 12.17802 | Q39: 144.708285 | S39: 0 | T39: 0 | U39: 0 | V39: 0 | W39: 0 | Y39: 750.7691
B40: 3 | C40: 169.156565 | D40: 0.905435 | E40: 0 | F40: 0.09094 | G40: 0 | H40: 0 | I40: 62.4624 | J40: 0.01545 | L40: 0 | M40: 0.658335 | N40: 3.11368 | O40: 0.055565 | P40: 13.62772 | Q40: 54.285435 | S40: 0 | T40: 0 | U40: 0 | V40: 0 | W40: 0 | Y40: 304.371525
B41: 4 | C41: 164.204135 | D41: 157.087755 | E41: 0.26461 | F41: 1.070445 | G41: 0 | H41: 0.22532 | I41: 0 | J41: 0 | L41: 0 | M41: 122.70085 | N41: 8.64444 | O41: 2.20465 | P41: 14.078935 | Q41: 20.770985 | S41: 0 | T41: 0 | U41: 0 | V41: 0 | W41: 0 | Y41: 491.252125
B42: 5 | C42: 398.32951 | D42: 7.942075 | E42: 62.18173 | F42: 0.423745 | G42: 0 | H42: 203.776725 | I42: 0 | J42: 0.06891 | L42: 0 | M42: 425.232705 | N42: 14.177085 | O42: 4.795945 | P42: 6.5438 | Q42: 3.895525 | S42: 0 | T42: 0 | U42: 0 | V42: 0 | W42: 0 | Y42: 1127.367755
B43: 6 | C43: 77.52103 | D43: 29.432095 | E43: 13.406615 | F43: 0.70059 | G43: 0.64188 | H43: 9.83813 | I43: 0 | J43: 0.013325 | L43: 0.36436 | M43: 25.040515 | N43: 10.484065 | O43: 7.8204 | P43: 11.262895 | Q43: 16.82072 | S43: 0 | T43: 0 | U43: 0 | V43: 0 | W43: 0 | Y43: 203.34662
B44: 7 | C44: 63.47639 | D44: 22.518045 | E44: 26.31346 | F44: 0.10915 | G44: 47.608675 | H44: 4.05176 | I44: 0 | J44: 0.00166 | L44: 1.378945 | M44: 10.27808 | N44: 7.194985 | O44: 2.52236 | P44: 6.63915 | Q44: 12.94365 | S44: 0 | T44: 0 | U44: 0 | V44: 0.33288 | W44: 0.87944 | Y44: 206.24863
B45: 8 | C45: 158.07333 | D45: 24.598795 | E45: 65.763275 | F45: 0.127035 | G45: 9.80132 | H45: 0 | I45: 0 | J45: 0.01416 | L45: 0 | M45: 5.215585 | N45: 21.79679 | O45: 1.44748 | P45: 9.05109 | Q45: 22.017765 | S45: 0 | T45: 0 | U45: 19.59194 | V45: 4.719685 | W45: 0.445245 | Y45: 342.663495
B46: 9 | C46: 124.76104 | D46: 72.153735 | E46: 106.565025 | F46: 0.01198 | G46: 0 | H46: 0 | I46: 0 | J46: 0.002355 | L46: 0 | M46: 19.1826 | N46: 0 | O46: 5.57526 | P46: 66.123075 | Q46: 32.33835 | S46: 84.87797 | T46: 534.657355 | U46: 5.897955 | V46: 0 | W46: 0 | Y46: 1052.1467
B47: Sum | C47: =SUM(C34:C46) -> 2573.329065 | D47: =SUM(D34:D46) -> 315.73103 | E47: =SUM(E34:E46) -> 274.494715 | F47: =SUM(F34:F46) -> 4.01053 | G47: =SUM(G34:G46) -> 58.051875 | H47: =SUM(H34:H46) -> 217.891935 | I47: =SUM(I34:I46) -> 223.40748 | J47: =SUM(J34:J46) -> 0.34655 | K47: =SUM(K34:K46) -> 0 | L47: =SUM(L34:L46) -> 1.743305 | M47: =SUM(M34:M46) -> 608.30867 | N47: =SUM(N34:N46) -> 76.092245 | O47: =SUM(O34:O46) -> 24.46044 | P47: =SUM(P34:P46) -> 189.133015 | Q47: =SUM(Q34:Q46) -> 595.36677 | R47: =SUM(R34:R46) -> 0 | S47: =SUM(S34:S46) -> 84.87797 | T47: =SUM(T34:T46) -> 534.657355 | U47: =SUM(U34:U46) -> 25.489895 | V47: =SUM(V34:V46) -> 5.052565 | W47: =SUM(W34:W46) -> 1.324685 | Y47: =SUM(Y33:Y46) -> 5813.770095
A48: Avg(#2 and #3)-2 | B48: -4
B49: -3 | C49: 3.68359757 | D49: 0 | E49: 0 | F49: 0 | G49: 0 | H49: 0 | I49: 0 | J49: 0 | L49: 0 | M49: 0 | N49: 0 | O49: 0 | P49: 0 | Q49: 0 | S49: 0 | T49: 0 | U49: 0 | V49: 0 | W49: 0 | Y49: =SUM(C49:W49) -> 3.68359757
B50: -2 | C50: 13.57950058 | D50: 0 | E50: 0 | F50: 0 | G50: 0 | H50: 0 | I50: 0 | J50: 0 | L50: 0 | M50: 0 | N50: 0.2525745635 | O50: 0 | P50: 0 | Q50: 1.998967026 | S50: 0 | T50: 0 | U50: 0 | V50: 0 | W50: 0 | Y50: =SUM(C50:W50) -> 15.83104217
B51: -1 | C51: 16.99719242 | D51: 0 | E51: 0 | F51: 0 | G51: 0 | H51: 0 | I51: 0 | J51: 0 | L51: 0 | M51: 0 | N51: 0 | O51: 0 | P51: 0.4556987877 | Q51: 3.203022181 | S51: 0 | T51: 0 | U51: 0 | V51: 0 | W51: 0 | Y51: 20.65591339
B52: 0 | C52: 10.44018368 | D52: 0 | E52: 0 | F52: 0 | G52: 0 | H52: 0 | I52: 0 | J52: 0 | L52: 0 | M52: 0 | N52: 0 | O52: 0 | P52: 0.8766028976 | Q52: 4.57705718 | S52: 0 | T52: 0 | U52: 0 | V52: 0 | W52: 0 | Y52: 15.89384376
B53: 1 | C53: 17.8547404 | D53: 0 | E53: 0 | F53: 0 | G53: 0 | H53: 0 | I53: 1.125186917 | J53: 0 | L53: 0 | M53: 0 | N53: 0.52721057 | O53: 0 | P53: 0.619611949 | Q53: 12.59653633 | S53: 0 | T53: 0 | U53: 0 | V53: 0 | W53: 0 | Y53: 32.72328617
B54: 2 | C54: 37.8915022 | D54: 0.0216035843 | E54: 0 | F54: 0 | G54: 0 | H54: 0 | I54: 12.12021426 | J54: 0 | L54: 0 | M54: 0 | N54: 0.6738572779 | O54: 0 | P54: 1.089855488 | Q54: 11.00665882 | S54: 0 | T54: 0 | U54: 0 | V54: 0 | W54: 0 | Y54: 62.80369163
B55: 3 | C55: 9.254346471 | D55: 0.05988872095 | E55: 0.003331615173 | F55: 0 | G55: 0 | H55: 0 | I55: 3.880016833 | J55: 0 | L55: 0 | M55: 0.1245994583 | N55: 0.3168981095 | O55: 0.005973901255 | P55: 0.6245619199 | Q55: 3.806093672 | S55: 0 | T55: 0 | U55: 0 | V55: 0 | W55: 0 | Y55: 18.0757107
B56: 4 | C56: 8.92558202 | D56: 9.830899848 | E56: 0.01714329968 | F56: 0 | G56: 0 | H56: 0.001064491679 | I56: 0 | J56: 0 | L56: 0 | M56: 7.675930939 | N56: 0.8770517995 | O56: 0.07338228742 | P56: 0.528602084 | Q56: 1.578750884 | S56: 0 | T56: 0 | U56: 0 | V56: 0 | W56: 0 | Y56: 29.50840765
B57: 5 | C57: 25.21407189 | D57: 0.2880843908 | E57: 4.254044993 | F57: 0 | G57: 0 | H57: 11.65804474 | I57: 0 | J57: 0 | L57: 0 | M57: 26.76744342 | N57: 0.7395892992 | O57: 0.1139297258 | P57: 0.05785451502 | Q57: 0.2724725536 | S57: 0 | T57: 0 | U57: 0 | V57: 0 | W57: 0 | Y57: 69.36553552
B58: 6 | C58: 5.070915624 | D58: 1.642761929 | E58: 1.066711328 | F58: 0 | G58: 0.1193820065 | H58: 0.740594945 | I58: 0 | J58: 0 | L58: 0.02402286008 | M58: 1.567098537 | N58: 0.1106231458 | O58: 0.2424294435 | P58: 0.5654955187 | Q58: 1.156841026 | S58: 0 | T58: 0 | U58: 0 | V58: 0 | W58: 0 | Y58: 12.30687636
B59: 7 | C59: 3.689360883 | D59: 0.7402811916 | E59: 2.057451244 | F59: 0 | G59: 2.307488003 | H59: 0.4920424522 | I59: 0 | J59: 0 | L59: 0 | M59: 0.6371696149 | N59: 0.4718936452 | O59: 0.08287080751 | P59: 0.3243329213 | Q59: 0.8573579664 | S59: 0 | T59: 0 | U59: 0 | V59: 0.04821185248 | W59: 0.1322379603 | Y59: 11.84069854
B60: 8 | C60: 10.12444336 | D60: 1.926832734 | E60: 2.9836699 | F60: 0 | G60: 0.4860672545 | H60: 0 | I60: 0 | J60: 0 | L60: 0 | M60: 0.2299297756 | N60: 2.00844775 | O60: 0.07214528918 | P60: 0.3695137022 | Q60: 1.515940296 | S60: 0 | T60: 0 | U60: 1.114665483 | V60: 0.5447050986 | W60: 0.08762629871 | Y60: 21.46398694
B61: 9 | C61: 7.022756413 | D61: 1.391985061 | E61: 7.410526063 | F61: 0.06667944067 | G61: 0 | H61: 0 | I61: 0 | J61: 0 | L61: 0 | M61: 0 | N61: 0 | O61: 0.5298076739 | P61: 2.960643533 | Q61: 2.347288147 | S61: 1.427290266 | T61: 6.613706689 | U61: 0.4677373557 | V61: 0 | W61: 0 | Y61: 30.23842064
B62: Sum | C62: =SUM(C49:C61) -> 169.7481935 | D62: =SUM(D49:D61) -> 15.90233746 | E62: =SUM(E49:E61) -> 17.79287844 | F62: =SUM(F49:F61) -> 0.06667944067 | G62: =SUM(G49:G61) -> 2.912937264 | H62: =SUM(H49:H61) -> 12.89174662 | I62: =SUM(I49:I61) -> 17.12541801 | J62: =SUM(J49:J61) -> 0 | K62: =SUM(K49:K61) -> 0 | L62: =SUM(L49:L61) -> 0.02402286008 | M62: =SUM(M49:M61) -> 37.00217174 | N62: =SUM(N49:N61) -> 5.97814616 | O62: =SUM(O49:O61) -> 1.120539129 | P62: =SUM(P49:P61) -> 8.472773316 | Q62: =SUM(Q49:Q61) -> 44.91698609 | R62: =SUM(R49:R61) -> 0 | S62: =SUM(S49:S61) -> 1.427290266 | T62: =SUM(T49:T61) -> 6.613706689 | U62: =SUM(U49:U61) -> 1.582402838 | V62: =SUM(V49:V61) -> 0.5929169511 | W62: =SUM(W49:W61) -> 0.219864259 | Y62: =SUM(Y48:Y61) -> 344.3910111

Sheet GP partition
A1: Emission factor（mg/kg fuel) | C1: Alkane | D1: Alkene | E1: CycloAlkane | F1: Hopane | G1: PAH2rings | H1: PAH_3rings | I1: PAH_4rings | J1: PAH_5rings | K1: Biphenyl, Acenaphthene | L1: Phenol Benzylic Alcohol | M1: Benzylic Ketone Ester | N1: Acid | O1: Aliphatic Ketone Ester | P1: Aliphalic Alcohol Ether | Q1: C2 alkyl Benzene | R1: C3 alkyl Benzene | S1: C4 alkyl Benzene | T1: C5 alkyl Benzene | U1: C6 alkyl Benzene
A2: Particle | B2: #1-1 | C2: 92.11234007 | D2: 2.411001979 | E2: 1.837416122 | F2: 1.243359646 | G2: 33.78193295 | H2: 3.643080267 | I2: 1.306337295 | J2: 0.2536772246 | K2: 0.04338005356 | L2: 5.582573717 | M2: 0.7365725628 | N2: 0.3446216674 | O2: 1.59904117 | P2: 0 | Q2: 0 | R2: 0 | S2: 0 | T2: 0 | U2: 0
B3: #1-2 | C3: 1.084734432 | D3: 0.03829741704 | E3: 0.04791872412 | F3: 0.001550947754 | G3: 0.3478918175 | H3: 0.05287066482 | I3: 0.001331686675 | J3: 0.000807689516 | K3: 0.0003326769168 | L3: 0.08729800092 | M3: 0.01009627727 | N3: 0.00450572358 | O3: 0.02270813672 | P3: 0 | Q3: 0 | R3: 0 | S3: 0 | T3: 0 | U3: 0
B4: #2-1 | C4: 0.3944005712 | D4: 0.05957835502 | E4: 0.005103004253 | F4: 0.0003275545285 | G4: 0.1827329439 | H4: 0.1222111273 | I4: 0.006380136435 | J4: 0.0005155993206 | K4: 0.0002504121994 | L4: 0.2345285705 | M4: 0.04127438224 | N4: 0.01830342112 | O4: 0.05596717436 | P4: 0 | Q4: 0 | R4: 0.0001006122599 | S4: 0 | T4: 0 | U4: 0
B5: #2-2 | C5: 0.181500464 | D5: 0.04343161082 | E5: 0.002988375963 | F5: 0.0003234594843 | G5: 0.1413007687 | H5: 0.03795683586 | I5: 0.003643390391 | J5: 0 | K5: 0.0001328685161 | L5: 0.08093185988 | M5: 0.01635493429 | N5: 0.009591871676 | O5: 0.03212590012 | P5: 0 | Q5: 0 | R5: 0 | S5: 0 | T5: 0 | U5: 0
B6: #3-1 | C6: 0.2841212447 | D6: 0.05404273749 | E6: 0.002926860346 | F6: 0.0003314209932 | G6: 0.0919339453 | H6: 0.05264331092 | I6: 0.001916070545 | J6: 0 | K6: 0 | L6: 0.1255892705 | M6: 0.009426393734 | N6: 0.0133310754 | O6: 0.04162730438 | P6: 0 | Q6: 0 | R6: 0 | S6: 0 | T6: 0 | U6: 0
B7: #3-2 | C7: 0.1513700264 | D7: 0.02620716649 | E7: 0.001146452658 | F7: 2.277671617e-05 | G7: 0.1213459785 | H7: 0.05155695408 | I7: 0.001042356814 | J7: 0 | K7: 2.770360353e-05 | L7: 0.177606765 | M7: 0.004291296326 | N7: 0.004475673139 | O7: 0.02470235153 | P7: 0 | Q7: 0 | R7: 0 | S7: 0 | T7: 0 | U7: 0
B8: Avg | C8: 15.70141113 | D8: 0.4387598776 | E8: 0.3162499232 | F8: 0.2076526342 | G8: 5.777856401 | H8: 0.6600531932 | I8: 0.2201084893 | J8: 0.04250008558 | K8: 0.007353952465 | L8: 1.048088031 | M8: 0.1363359744 | N8: 0.06580490539 | O8: 0.2960286728 | P8: 0 | Q8: 0 | R8: 1.676870998e-05 | S8: 0 | T8: 0 | U8: 0
B9: DPF Avg | C9: =AVERAGE(C4:C7) -> 0.2528480766 | D9: =AVERAGE(D4:D7) -> 0.04581496745 | E9: 0.003041173305 | F9: 0.0002513029305 | G9: 0.1343284091 | H9: 0.06609205704 | I9: 0.003245488546 | J9: 0.0001288998302 | K9: 0.0001027460797 | L9: 0.1546641165 | M9: 0.01783675165 | N9: 0.01142551033 | O9: 0.0386056826 | P9: 0 | Q9: 0 | R9: 2.515306496e-05 | S9: 0 | T9: 0 | U9: 0
B10: Non DFP Avg | C10: =AVERAGE(C2:C3) -> 46.59853725 | D10: 1.224649698 | E10: 0.9426674231 | F10: =AVERAGE(F2:F3) -> 0.6224552967 | G10: =AVERAGE(G2:G3) -> 17.06491238 | H10: 1.847975466 | I10: 0.6538344907 | J10: 0.1272424571 | K10: 0.02185636524 | L10: 2.834935859 | M10: 0.37333442 | N10: 0.1745636955 | O10: 0.8108746531 | P10: 0 | Q10: 0 | R10: 0 | S10: 0 | T10: 0 | U10: 0
B11: % | C11: =(C10-C9)/C10 -> 0.9945739053 | D11: =(D10-D9)/D10 -> 0.9625893286 | E11: 0.996773864 | F11: 0.9995962715 | G11: 0.9921283857 | H11: 0.9642354251 | I11: 0.9950362231 | J11: 0.9989869747 | K11: 0.9952990317 | L11: 0.9454435218 | M11: 0.9522231257 | N11: 0.9345481871 | O11: 0.9523900735
C15: Alkane | D15: Alkene | E15: CycloAlkane | F15: Hopane | G15: PAH_2rings | H15: PAH_3rings | I15: PAH_4rings | J15: PAH_5rings | K15: Biphenyl, Acenaphthene | L15: Phenol Benzylic Alcohol | M15: Benzylic Ketone Ester | N15: Acid | O15: Aliphatic Ketone Ester | P15: Aliphalic Alcohol Ether | Q15: C2 alkyl Benzene | R15: C3 alkyl Benzene | S15: C4 alkyl Benzene | T15: C5 alkyl Benzene | U15: C6 alkyl Benzene
A16: Gas | B16: #1-1 | C16: 1083.143243 | D16: 102.0552331 | E16: 82.65559175 | F16: 0 | G16: 25.31925695 | H16: 39.97180697 | I16: 1.680307867 | K16: 0.7252667938 | L16: 208.3040772 | M16: 53.60732866 | N16: 5.131834009 | O16: 15.28223965 | P16: 166.209442 | Q16: 9.253503878 | R16: 18.93518134 | S16: 4.52825282 | T16: 0.9389527732 | U16: 0.5014857088
B17: #1-2 | C17: 332.3613278 | D17: 112.6119817 | E17: 102.9857208 | F17: 0.003782417994 | G17: 35.37915572 | H17: 40.17217316 | I17: 3.12025845 | K17: 0.9855360978 | L17: 173.0861004 | M17: 37.82636265 | N17: 10.6420039 | O17: 70.73111765 | P17: 56.10189647 | Q17: 1.027277958 | R17: 19.9288388 | S17: 5.904302922 | T17: 1.754301207 | U17: 0.3376340037
B18: #2-1 | C18: 458.5169952 | D18: 43.41763269 | E18: 52.23448668 | F18: 0.04500961892 | G18: 10.34514075 | H18: 21.46735291 | I18: 52.22465614 | K18: 0.1357368764 | L18: 76.12856364 | M18: 16.60854073 | N18: 2.547148765 | O18: 23.80934228 | P18: 97.35996877 | Q18: 13.50449399 | R18: 23.89665076 | S18: 5.120539956 | T18: 1.231036911 | U18: 0.6324974519
B19: #2-2 | C19: 325.1734232 | D19: 27.55583933 | E19: 32.19352319 | F19: 0 | G19: 5.797126854 | H19: 22.72045425 | I19: 33.5483431 | K19: 0.04604274388 | L19: 66.45185611 | M19: 10.76729195 | N19: 1.912035337 | O19: 15.7064116 | P19: 88.8532253 | Q19: 2.854580532 | R19: 12.98069535 | S19: 3.095524661 | T19: 1.142125074 | U19: 0.423454916
B20: #3-1 | C20: 76.55189528 | D20: 10.25405534 | E20: 8.537305566 | F20: 0 | G20: 0.5745065324 | H20: 8.304574621 | I20: 2.324167194 | K20: 0 | L20: 17.02571734 | M20: 1.795136874 | N20: 0.8610390819 | O20: 6.09341734 | P20: 7.206665912 | Q20: 3.104115651 | R20: 5.047215558 | S20: 1.610001834 | T20: 0.2797663188 | U20: 0.08591728003
B21: #3-2 | C21: 14.32296386 | D21: 4.248835593 | E21: 3.525592572 | F21: 0 | G21: 0.0287476754 | H21: 3.063038999 | I21: 0.7024929107 | K21: 0.002002976287 | L21: 7.552487372 | M21: 1.189000375 | N21: 0.3290429202 | O21: 1.239135036 | P21: 0.980746874 | Q21: 0 | R21: 0.2467180243 | S21: 0.06928101576 | T21: 0.0437088282 | U21: 0.01627360196
B22: Avg | C22: 381.678308 | D22: 50.02392962 | E22: 47.02203677 | F22: 0.008132006153 | G22: 12.90732241 | H22: 22.61656682 | I22: 15.60003761 | K22: 0.315764248 | L22: 91.42480033 | M22: 20.29894354 | N22: 3.570517336 | O22: 22.14361059 | P22: 69.45199089 | Q22: 4.957328667 | R22: 13.5058833 | S22: 3.387983868 | T22: 0.8983151853 | U22: 0.3328771604
B23: DPF Avg | C23: =AVERAGE(C18:C21) -> 218.6413194 | D23: =AVERAGE(D18:D21) -> 21.36909074 | E23: 24.122727 | F23: 0.01125240473 | G23: 4.186380454 | H23: 13.88885519 | I23: 22.19991484 | K23: 0.04594564914 | L23: 41.78965611 | M23: 7.589992482 | N23: 1.412316526 | O23: 11.71207656 | P23: 48.60015171 | Q23: 4.865797542 | R23: 10.54281992 | S23: 2.473836867 | T23: 0.6741592829 | U23: 0.2895358125
B24: Non DFP Avg | C24: =AVERAGE(C16:C17) -> 707.7522852 | D24: =AVERAGE(D16:D17) -> 107.3336074 | E24: 92.82065629 | F24: 0.001891208997 | G24: 30.34920633 | H24: 40.07199007 | I24: 2.400283158 | K24: =AVERAGE(K16:K17) -> 0.8554014458 | L24: 190.6950888 | M24: 45.71684566 | N24: =AVERAGE(N16:N17) -> 7.886918957 | O24: =AVERAGE(O16:O17) -> 43.00667865 | P24: 111.1556693 | Q24: 5.140390918 | R24: 19.43201007 | S24: 5.216277871 | T24: 1.34662699 | U24: 0.4195598563
B25: % | C25: =(C24-C23)/C24 -> 0.6910764911 | D25: =(D24-D23)/D24 -> 0.8009096008 | E25: =(E24-E23)/E24 -> 0.7401146688 | F25: =(F24-F23)/F24 -> -4.949847292 | G25: =(G24-G23)/G24 -> 0.8620596398 | H25: =(H24-H23)/H24 -> 0.6534024098 | I25: =(I24-I23)/I24 -> -8.248873309 | K25: =(K24-K23)/K24 -> 0.9462876181 | L25: =(L24-L23)/L24 -> 0.780856149 | M25: =(M24-M23)/M24 -> 0.8339782115 | N25: =(N24-N23)/N24 -> 0.8209292458 | O25: =(O24-O23)/O24 -> 0.7276684243 | P25: =(P24-P23)/P24 -> 0.5627739724 | Q25: =(Q24-Q23)/Q24 -> 0.05341877295 | R25: =(R24-R23)/R24 -> 0.457450882 | S25: =(S24-S23)/S24 -> 0.5257467244 | T25: =(T24-T23)/T24 -> 0.4993719213 | U25: =(U24-U23)/U24 -> 0.3099058259
A26: Particle fraction | C26: =C2/(C2+C16) -> 0.07837643268 | D26: 0.0230792464 | E26: 0.02174636894 | F26: 1 | G26: 0.5715948022 | H26: 0.08352836605 | I26: 0.4373928686 | J26: 1 | K26: 0.0564369108 | L26: 0.02610061775 | M26: 0.01355391398 | N26: 0.06292786571 | O26: 0.09472273972 | P26: 0 | Q26: 0 | R26: 0 | S26: 0 | T26: 0 | U26: 0
C27: =C3/(C3+C17) -> 0.00325310314 | D27: 0.0003399673516 | E27: 0.0004650784377 | F27: 0.2908009365 | G27: 0.009737491383 | H27: 0.001314371839 | I27: 0.0004266052289 | K27: =K3/(K3+K17) -> 0.0003374454343 | L27: 0.0005041074538 | M27: 0.0002668399093 | N27: 0.0004232113375 | O27: 0.0003209457082 | P27: 0 | Q27: 0 | R27: 0 | S27: 0 | T27: 0 | U27: 0
C28: 0.0008594264051 | D28: 0.001370335253 | E28: 9.768461591e-05 | F28: 0.007224855534 | G28: 0.0173570608 | H28: 0.005660657488 | I28: 0.0001221522085 | K28: =K4/(K4+K18) -> 0.001841438284 | L28: 0.003071229356 | M28: 0.002478969403 | N28: 0.007134578934 | O28: 0.002345126697 | P28: 0 | Q28: 0 | R28: 4.210290273e-06 | S28: 0 | T28: 0 | U28: 0
C29: 0.0005578537491 | D29: 0.001573650656 | E29: 9.281676236e-05 | F29: 1 | G29: 0.02379430679 | H29: 0.001667815724 | I29: 0.0001085894092 | K29: =K5/(K5+K19) -> 0.002877460832 | L29: 0.001216420691 | M29: 0.001516642233 | N29: 0.004991536149 | O29: 0.002041225249 | P29: 0 | Q29: 0 | R29: 0 | S29: 0 | T29: 0 | U29: 0
C30: 0.003697761253 | D30: 0.005242745761 | E30: 0.0003427143666 | F30: 1 | G30: 0.1379477213 | H30: 0.00629914301 | I30: 0.0008237325699 | L30: =L6/(L6+L20) -> 0.00732243166 | M30: 0.005223642696 | N30: 0.01524648947 | O30: 0.006785167312 | P30: 0 | Q30: 0 | R30: 0 | S30: 0 | T30: 0 | U30: 0
C31: 0.01045782332 | D31: 0.006130270025 | E31: 0.0003250744244 | F31: 1 | G31: 0.8084684152 | H31: 0.01655333624 | I31: 0.001481598523 | K31: =K7/(K7+K21) -> 0.01364252616 | L31: 0.0229760158 | M31: 0.003596183925 | N31: 0.01341956109 | O31: 0.01954551415 | P31: 0 | R31: =R7/(R7+R21) -> 0 | S31: 0 | T31: 0 | U31: 0
B32: Avg | C32: 0.03951236155 | D32: 0.008694738271 | E32: 0.006680637289 | F32: 0.9623142493 | G32: 0.3092213598 | H32: 0.0283569175 | I32: 0.01391317677 | K32: 0.02275932601 | L32: 0.0113340034 | M32: 0.00667159822 | N32: 0.01809655498 | O32: 0.01319222066 | P32: 0 | Q32: =Q8/(Q8+Q22) -> 0 | R32: 1.24158404e-06 | S32: 0 | T32: 0 | U32: 0
B33: DPF Avg | C33: 0.001155115641 | D33: 0.00213939618 | E33: 0.0001260549833 | F33: 0.02184538567 | G33: 0.03108943771 | H33: 0.004736102247 | I33: 0.0001461723691 | J33: =J9/(J9+J23) -> 1 | K33: 0.002231262984 | L33: 0.003687367339 | M33: 0.002344525764 | N33: 0.008024986299 | O33: 0.003285399246 | P33: 0 | Q33: =Q9/(Q9+Q23) -> 0 | R33: 2.3857948e-06 | S33: 0 | T33: 0 | U33: 0
A35: Gas fraction | C35: =1-C26 -> 0.9216235673 | D35: =1-D26 -> 0.9769207536 | E35: 0.9782536311 | F35: 0 | G35: 0.4284051978 | H35: 0.9164716339 | I35: 0.5626071314 | J35: 0 | K35: 0.9435630892 | L35: 0.9738993822 | M35: 0.986446086 | N35: 0.9370721343 | O35: 0.9052772603 | P35: 1 | Q35: 1 | R35: 1 | S35: 1 | T35: 1 | U35: 1
C36: =1-C27 -> 0.9967468969 | D36: 0.9996600326 | E36: 0.9995349216 | F36: 0.7091990635 | G36: 0.9902625086 | H36: 0.9986856282 | I36: 0.9995733948 | J36: 1 | K36: 0.9996625546 | L36: 0.9994958925 | M36: 0.9997331601 | N36: 0.9995767887 | O36: 0.9996790543 | P36: 1 | Q36: 1 | R36: 1 | S36: 1 | T36: 1 | U36: 1
C37: 0.9991405736 | D37: 0.9986296647 | E37: 0.9999023154 | F37: 0.9927751445 | G37: 0.9826429392 | H37: 0.9943393425 | I37: 0.9998778478 | J37: 1 | K37: 0.9981585617 | L37: 0.9969287706 | M37: 0.9975210306 | N37: 0.9928654211 | O37: 0.9976548733 | P37: 1 | Q37: 1 | R37: 0.9999957897 | S37: 1 | T37: 1 | U37: 1
C38: 0.9994421463 | D38: 0.9984263493 | E38: 0.9999071832 | F38: 0 | G38: 0.9762056932 | H38: 0.9983321843 | I38: 0.9998914106 | J38: 1 | K38: 0.9971225392 | L38: 0.9987835793 | M38: 0.9984833578 | N38: 0.9950084639 | O38: 0.9979587748 | P38: 1 | Q38: 1 | R38: 1 | S38: 1 | T38: 1 | U38: 1
C39: 0.9963022387 | D39: 0.9947572542 | E39: 0.9996572856 | F39: 0 | G39: 0.8620522787 | H39: 0.993700857 | I39: 0.9991762674 | J39: 1 | K39: 1 | L39: 0.9926775683 | M39: 0.9947763573 | N39: 0.9847535105 | O39: 0.9932148327 | P39: 1 | Q39: 1 | R39: 1 | S39: 1 | T39: 1 | U39: 1
C40: 0.9895421767 | D40: 0.99386973 | E40: 0.9996749256 | F40: 0 | G40: 0.1915315848 | H40: 0.9834466638 | I40: 0.9985184015 | J40: 1 | K40: 0.9863574738 | L40: 0.9770239842 | M40: 0.9964038161 | N40: 0.9865804389 | O40: 0.9804544859 | P40: 1 | Q40: 1 | R40: 1 | S40: 1 | T40: 1 | U40: 1
B41: Avg | C41: 0.9604876385 | D41: 0.9913052617 | E41: 0.9933193627 | F41: 0.03768575066 | G41: 0.6907786402 | H41: 0.9716430825 | I41: 0.9860868232 | J41: 1 | K41: 0.977240674 | L41: 0.9886659966 | M41: 0.9933284018 | N41: 0.981903445 | O41: 0.9868077793 | P41: 1 | Q41: 1 | R41: 0.9999987584 | S41: 1 | T41: 1 | U41: 1
B42: DPF Avg | C42: 0.9988448844 | D42: 0.9978606038 | E42: 0.999873945 | F42: 0.9781546143 | G42: 0.9689105623 | H42: 0.9952638978 | I42: 0.9998538276 | J42: 0 | K42: 0.997768737 | L42: 0.9963126327 | M42: 0.9976554742 | N42: 0.9919750137 | O42: 0.9967146008 | P42: 1 | Q42: 1 | R42: 0.9999976142 | S42: 1 | T42: 1 | U42: 1

Sheet Removal efficiency
C1: Avg emission factor（mg/kg fuel)
C2: Avg_all | D2: Avg_wiAT | E2: Avg_woAT | F2: Removal efficiency
B3: Alkane | C3: 15.70141113 | D3: 0.2528480766 | E3: 46.59853725 | F3: =(E3-D3)/E3 -> 0.9945739053
B4: Alkene | C4: 0.4387598776 | D4: 0.04581496745 | E4: 1.224649698 | F4: =(E4-D4)/E4 -> 0.9625893286
B5: CycloAlkane | C5: 0.3162499232 | D5: 0.003041173305 | E5: 0.9426674231 | F5: 0.996773864
B6: Hopane | C6: 0.2076526342 | D6: 0.0002513029305 | E6: 0.6224552967 | F6: 0.9995962715
B7: PAH2rings | C7: 5.777856401 | D7: 0.1343284091 | E7: 17.06491238 | F7: 0.9921283857
B8: PAH_3rings | C8: 0.6600531932 | D8: 0.06609205704 | E8: 1.847975466 | F8: 0.9642354251
B9: PAH_4rings | C9: 0.2201084893 | D9: 0.003245488546 | E9: 0.6538344907 | F9: 0.9950362231
B10: PAH_5rings | C10: 0.133679654 | D10: 0.001166426256 | E10: 0.3987061095 | F10: 0.9970744711
B11: Biphenyl, Acenaphthene | C11: 0.007353952465 | D11: 0.0001027460797 | E11: 0.02185636524 | F11: 0.9952990317
B12: Phenol Benzylic Alcohol | C12: 1.048088031 | D12: 0.1546641165 | E12: 2.834935859 | F12: 0.9454435218
B13: Benzylic Ketone Ester | C13: 0.1363359744 | D13: 0.01783675165 | E13: 0.37333442 | F13: 0.9522231257
B14: Acid | C14: 0.06580490539 | D14: 0.01142551033 | E14: 0.1745636955 | F14: 0.9345481871
B15: Aliphatic Ketone Ester | C15: 0.2960286728 | D15: 0.0386056826 | E15: 0.8108746531 | F15: 0.9523900735
B16: Aliphalic Alcohol Ether
B17: C2 alkyl Benzene
B18: C3 alkyl Benzene
B19: C4 alkyl Benzene
B20: C5 alkyl Benzene
B21: C6 alkyl Benzene
B22: Nitros
